[Event "5th Nebesna Sotnya Rapid 2018"]
[Site "Lutsk"]
[Date "2018.02.17"]
[Round "4"]
[White "Mirzoev, Emil"]
[Black "Snigurov, Maxim"]
[Result "*"]
[ECO "C28"]
[WhiteElo "2405"]
[BlackElo "2150"]
[Annotator "ChessBase"]
[PlyCount "79"]
[EventDate "2018.??.??"]
[EventType "swiss"]
[EventCountry "UKR"]
[SourceTitle "playchess.com"]
[Source "ChessBase"]
[SourceQuality "1"]
[TimeControl "1200+5"]

1. e4 {[%emt 0:01:39]} e5 {[%emt 0:00:00]} 2. Bc4 {[%emt 0:00:01]} Nf6 {[%emt 0:00:02]} 3. d3 {[%emt 0:00:02]} Nc6 {[%emt 0:00:05]} 4. Nc3 {[%emt 0:00:05]} Bc5 {[%emt 0:00:04]} 5. f4 {[%emt 0:00:02]} exf4 {[%emt 0:00:02]} 6. Bxf4 {[%emt 0:00:05]} d6 {[%emt 0:00:02]} 7. Nf3 {[%emt 0:00:01]} Be6 {[%emt 0:00:01]} 8. Bb3 {[%emt 0:00:26]} Bb6 {[%emt 0:00:10]} 9. Qd2 {[%emt 0:00:53]} Qd7 {[%emt 0:00:02]} 10. Ba4 {[%emt 0:00:26]} O-O-O {[%emt 0:00:20]} 11. d4 {[%emt 0:01:28]} Qe7 {[%emt 0:00:59]} 12. Bxc6 {[%emt 0:00:50]} bxc6 {[%emt 0:00:02]} 13. O-O-O {[%emt 0:00:44]} Ba5 {[%emt 0:00:11]} 14. Qd3 {[%emt 0:00:52]} Bxc3 {[%emt 0:00:39]} 15. Qxc3 {[%emt 0:00:11]} Bg4 {[%emt 0:01:08]} 16. Rhe1 {[%emt 0:00:20]} Qd7 {[%emt 0:00:30]} 17. Bg5 {[%emt 0:00:26]} Rde8 {[%emt 0:01:50]} 18. Bxf6 {[%emt 0:00:14]} gxf6 {[%emt 0:00:01]} 19. Qa5 {[%emt 0:01:08]} Bxf3 {[%emt 0:00:39]} 20. gxf3 {[%emt 0:00:19]} Qh3 {[%emt 0:00:28]} 21. Rd3 {[%emt 0:00:17]} f5 {[%emt 0:00:03]} 22. Qa6+ {[%emt 0:00:14]} Kd7 {[%emt 0:00:02]} 23. Rc3 {[%emt 0:00:47]} Qh6+ 24. Kb1 d5 {[%emt 0:00:12]} 25. e5 {[%emt 0:00:17]} Re6 {[%emt 0:00:01]} 26. Qd3 {[%emt 0:00:49]} Qf4 {[%emt 0:00:30]} 27. Ra3 {[%emt 0:00:37]} Rg8 {[%emt 0:00:24]} 28. Rxa7 {[%emt 0:00:29]} Rg2 {[%emt 0:00:01]} 29. Rd1 {[%emt 0:00:46]} Rxh2 {[%emt 0:00:47]} 30. Qc3 {[%emt 0:00:35]} Re8 {[%emt 0:00:10]} 31. a4 {[%emt 0:00:25]} h5 {[%emt 0:00:30]} 32. Qb4 {[%emt 0:00:33]} Qh6 {[%emt 0:00:08]} 33. a5 {[%emt 0:00:41]} h4 {[%emt 0:00:06]} 34. a6 {[%emt 0:00:03]} Rc8 {[%emt 0:00:11]} 35. Rb7 {[%emt 0:00:36]} h3 {[%emt 0:02:02]} 36. a7 {[%emt 0:00:09]} Rg2 {[%emt 0:00:01]} 37. Rb8 {[%emt 0:00:15]} Rgg8 {[%emt 0:02:58]} 38. a8=Q {[%emt 0:00:14]} h2 {[%emt 0:00:07]} 39. Rxc8 {[%emt 0:00:41]} Rxc8 {[%emt 0:00:06]} 40. Qaa3 {[%emt 0:00:25]} *

[Event "5th Nebesna Sotnya Rapid 2018"]
[Site "Lutsk"]
[Date "2018.02.17"]
[Round "5"]
[White "Solovchuk, Oleksiy"]
[Black "Peng, Li Min"]
[Result "1/2-1/2"]
[ECO "A10"]
[WhiteElo "2364"]
[BlackElo "2404"]
[Annotator "ChessBase"]
[PlyCount "174"]
[EventDate "2018.??.??"]
[EventType "swiss"]
[EventCountry "UKR"]
[SourceTitle "playchess.com"]
[Source "ChessBase"]
[SourceQuality "1"]
[TimeControl "1200+5"]

1. c4 {[%emt 0:00:00]} f5 {[%emt 0:00:15]} 2. Nc3 {[%emt 0:00:00]} Nf6 {[%emt 0:00:01]} 3. g3 {[%emt 0:00:11]} g6 {[%emt 0:00:01]} 4. Bg2 {[%emt 0:00:01]} Bg7 {[%emt 0:00:01]} 5. d4 {[%emt 0:00:20]} O-O {[%emt 0:00:01]} 6. Bg5 {[%emt 0:00:02]} d6 {[%emt 0:00:43]} 7. Qd2 {[%emt 0:00:45]} Nc6 {[%emt 0:01:06]} 8. Rc1 {[%emt 0:01:26]} e6 {[%emt 0:05:00]} 9. Nf3 {[%emt 0:00:26]} Qe8 {[%emt 0:00:01]} 10. O-O {[%emt 0:00:41]} Ne4 {[%emt 0:02:20]} 11. Nxe4 {[%emt 0:00:39]} fxe4 {[%emt 0:00:01]} 12. Ne1 {[%emt 0:00:01]} Nxd4 {[%emt 0:00:01]} 13. Bxe4 {[%emt 0:00:14]} Bd7 {[%emt 0:00:02]} 14. b3 {[%emt 0:01:34]} Bc6 {[%emt 0:00:10]} 15. Bg2 {[%emt 0:00:57]} Bxg2 {[%emt 0:02:37]} 16. Nxg2 {[%emt 0:00:05]} b6 {[%emt 0:00:08]} 17. f3 {[%emt 0:01:44]} Qf7 {[%emt 0:01:14]} 18. Be3 {[%emt 0:00:08]} Nf5 {[%emt 0:00:14]} 19. Bf2 {[%emt 0:00:21]} Qf6 {[%emt 0:00:01]} 20. Rcd1 {[%emt 0:00:41]} Qb2 {[%emt 0:01:12]} 21. Qxb2 {[%emt 0:00:22]} Bxb2 {[%emt 0:00:01]} 22. Nf4 {[%emt 0:00:05]} Kf7 {[%emt 0:00:01]} 23. e4 {[%emt 0:00:19]} Ne7 {[%emt 0:00:05]} 24. Nd3 {[%emt 0:00:04]} Bg7 {[%emt 0:00:10]} 25. Be3 {[%emt 0:02:53]} a5 {[%emt 0:00:45]} 26. a4 {[%emt 0:00:07]} Nc6 {[%emt 0:00:48]} 27. Nf2 {[%emt 0:00:16]} Nb4 {[%emt 0:00:11]} 28. Rd2 {[%emt 0:00:41]} Bc3 {[%emt 0:00:01]} 29. Re2 {[%emt 0:00:01]} Ke7 {[%emt 0:00:01]} 30. Kg2 {[%emt 0:00:01]} Nc6 {[%emt 0:00:05]} 31. Rd1 {[%emt 0:00:08]} e5 {[%emt 0:00:24]} 32. Bh6 {[%emt 0:00:34]} Rh8 {[%emt 0:01:26]} 33. Ng4 {[%emt 0:00:11]} Bd4 {[%emt 0:00:17]} 34. f4 {[%emt 0:00:25]} exf4 {[%emt 0:00:41]} 35. gxf4 {[%emt 0:00:10]} Kf7 {[%emt 0:00:01]} 36. e5 {[%emt 0:01:05]} dxe5 {[%emt 0:02:20]} 37. fxe5 {[%emt 0:00:02]} Ke6 {[%emt 0:00:11]} 38. Rf1 Ne7 39. Rf6+ Kd7 40. Rf7 {[%emt 0:01:33]} Ke6 {[%emt 0:00:04]} 41. Rf6+ Kd7 42. Rd2 {[%emt 0:00:32]} c5 {[%emt 0:00:02]} 43. Rxb6 {[%emt 0:00:15]} Rhb8 {[%emt 0:00:23]} 44. e6+ {[%emt 0:00:29]} Kc8 {[%emt 0:00:24]} 45. Rb5 {[%emt 0:00:14]} Rxb5 {[%emt 0:00:01]} 46. cxb5 {[%emt 0:00:06]} Rb8 {[%emt 0:00:06]} 47. Bf8 {[%emt 0:00:46]} Nf5 {[%emt 0:00:14]} 48. Rc2 {[%emt 0:00:46]} Kb7 {[%emt 0:00:08]} 49. Bh6 {[%emt 0:00:28]} Re8 {[%emt 0:00:02]} 50. Re2 {[%emt 0:00:05]} Kc7 {[%emt 0:00:07]} 51. Bf4+ {[%emt 0:00:05]} Kc8 {[%emt 0:00:02]} 52. Kf1 {[%emt 0:00:23]} Ng7 {[%emt 0:00:01]} 53. Bd2 {[%emt 0:00:17]} Nxe6 {[%emt 0:00:04]} 54. Bxa5 {[%emt 0:00:03]} Rf8+ {[%emt 0:00:01]} 55. Ke1 {[%emt 0:00:05]} Nf4 {[%emt 0:00:00]} 56. Re7 {[%emt 0:00:09]} h5 {[%emt 0:00:15]} 57. Ne3 {[%emt 0:00:07]} Bxe3 {[%emt 0:00:02]} 58. Rxe3 {[%emt 0:00:32]} Ng2+ {[%emt 0:00:01]} 59. Ke2 {[%emt 0:00:00]} Nxe3 {[%emt 0:00:01]} 60. Kxe3 {[%emt 0:00:01]} Kb7 {[%emt 0:00:14]} 61. Kd3 {[%emt 0:00:07]} Rf4 {[%emt 0:00:03]} 62. Bc3 {[%emt 0:00:05]} g5 {[%emt 0:00:08]} 63. Be5 {[%emt 0:00:04]} Rg4 {[%emt 0:00:10]} 64. Bf6 {[%emt 0:00:14]} h4 {[%emt 0:00:04]} 65. Kc3 {[%emt 0:00:02]} h3 {[%emt 0:00:05]} 66. a5 {[%emt 0:00:07]} Rb4 {[%emt 0:00:04]} 67. b6 {[%emt 0:00:10]} Rb5 {[%emt 0:00:04]} 68. Bxg5 {[%emt 0:00:03]} Rxa5 {[%emt 0:00:01]} 69. Bd8 {[%emt 0:00:01]} Ra1 {[%emt 0:00:14]} 70. Bc7 {[%emt 0:00:01]} Rc1+ {[%emt 0:00:03]} 71. Kd3 {[%emt 0:00:01]} Kc6 {[%emt 0:00:01]} 72. Kd2 {[%emt 0:00:02]} Rb1 {[%emt 0:00:02]} 73. Kc2 {[%emt 0:00:01]} Rg1 {[%emt 0:00:02]} 74. Kc3 {[%emt 0:00:02]} Rg4 {[%emt 0:00:04]} 75. Kd3 {[%emt 0:00:01]} Rb4 {[%emt 0:00:14]} 76. Kc3 {[%emt 0:00:00]} Re4 77. Kd3 {[%emt 0:00:00]} Rg4 {[%emt 0:00:09]} 78. Kc2 {[%emt 0:00:00]} Rg6 {[%emt 0:00:01]} 79. Kd3 {[%emt 0:00:00]} Rg1 {[%emt 0:00:00]} 80. Kc3 {[%emt 0:00:00]} Rg4 {[%emt 0:00:00]} 81. Kd3 {[%emt 0:00:00]} Rb4 {[%emt 0:00:00]} 82. Kc3 {[%emt 0:00:00]} Kd5 {[%emt 0:00:00]} 83. Bd8 {[%emt 0:00:00]} Kc6 {[%emt 0:00:21]} 84. Bc7 {[%emt 0:00:00]} Rg4 {[%emt 0:00:02]} 85. Kd3 {[%emt 0:00:00]} Rb4 {[%emt 0:00:09]} 86. Kc3 {[%emt 0:00:00]} Kd5 {[%emt 0:00:02]} 87. Bd8 {[%emt 0:00:00]} Ke5 1/2-1/2

[Event "5th Nebesna Sotnya Rapid 2018"]
[Site "Lutsk"]
[Date "2018.02.17"]
[Round "6"]
[White "Seletsky, Grigory"]
[Black "Solovchuk, Oleksiy"]
[Result "1/2-1/2"]
[ECO "A46"]
[WhiteElo "2336"]
[BlackElo "2364"]
[Annotator "ChessBase"]
[PlyCount "187"]
[EventDate "2018.??.??"]
[EventType "swiss"]
[EventCountry "UKR"]
[SourceTitle "playchess.com"]
[Source "ChessBase"]
[SourceQuality "1"]
[TimeControl "1200+5"]

1. d4 {[%emt 0:00:00]} Nf6 {[%emt 0:00:03]} 2. Nf3 {[%emt 0:00:03]} e6 {[%emt 0:00:02]} 3. Bf4 {[%emt 0:00:04]} b6 {[%emt 0:00:02]} 4. e3 {[%emt 0:00:04]} Bb7 {[%emt 0:00:01]} 5. h3 {[%emt 0:00:06]} c5 {[%emt 0:00:11]} 6. c3 {[%emt 0:00:02]} cxd4 {[%emt 0:00:06]} 7. exd4 {[%emt 0:01:00]} Be7 {[%emt 0:00:01]} 8. Bd3 {[%emt 0:00:39]} O-O {[%emt 0:00:05]} 9. O-O {[%emt 0:00:16]} d6 {[%emt 0:00:01]} 10. a4 {[%emt 0:00:32]} a6 {[%emt 0:00:02]} 11. Nbd2 {[%emt 0:01:32]} Nbd7 {[%emt 0:00:01]} 12. Re1 {[%emt 0:03:12]} Re8 {[%emt 0:00:16]} 13. Qb1 {[%emt 0:00:18]} Qc7 {[%emt 0:00:39]} 14. Ne4 {[%emt 0:00:53]} Nxe4 {[%emt 0:00:02]} 15. Bxe4 {[%emt 0:00:01]} Nf6 {[%emt 0:00:10]} 16. Bxb7 {[%emt 0:00:08]} Qxb7 {[%emt 0:00:01]} 17. c4 {[%emt 0:01:56]} d5 {[%emt 0:00:16]} 18. b3 {[%emt 0:00:26]} Rac8 {[%emt 0:01:13]} 19. Qd3 {[%emt 0:00:26]} Bb4 {[%emt 0:00:59]} 20. Rec1 {[%emt 0:00:37]} dxc4 {[%emt 0:01:01]} 21. bxc4 {[%emt 0:00:05]} Qe4 {[%emt 0:00:01]} 22. Qb3 {[%emt 0:02:09]} a5 {[%emt 0:00:14]} 23. Be3 {[%emt 0:00:21]} Nd7 {[%emt 0:00:09]} 24. Qc2 {[%emt 0:03:30]} Qxc2 {[%emt 0:00:36]} 25. Rxc2 {[%emt 0:00:02]} Rc7 {[%emt 0:00:45]} 26. Bd2 {[%emt 0:01:03]} Rec8 {[%emt 0:00:05]} 27. Bxb4 {[%emt 0:00:07]} axb4 {[%emt 0:00:02]} 28. Nd2 {[%emt 0:00:02]} Nb8 {[%emt 0:00:50]} 29. Rb2 {[%emt 0:00:48]} Rd7 {[%emt 0:00:23]} 30. Rxb4 {[%emt 0:00:17]} Rxd4 {[%emt 0:00:02]} 31. Nb3 {[%emt 0:00:22]} Rd6 {[%emt 0:00:14]} 32. a5 {[%emt 0:00:03]} bxa5 {[%emt 0:00:03]} 33. Nxa5 {[%emt 0:00:09]} Ra6 {[%emt 0:00:23]} 34. Rab1 {[%emt 0:00:11]} Nd7 {[%emt 0:00:01]} 35. Rb7 {[%emt 0:00:12]} Rd6 {[%emt 0:02:11]} 36. Ra7 {[%emt 0:00:06]} g5 {[%emt 0:00:09]} 37. Rbb7 {[%emt 0:00:06]} Ne5 {[%emt 0:00:22]} 38. Rb5 {[%emt 0:00:22]} Rd1+ {[%emt 0:00:01]} 39. Kh2 {[%emt 0:00:01]} Re1 {[%emt 0:00:02]} 40. c5 {[%emt 0:00:32]} Kg7 {[%emt 0:01:49]} 41. c6 {[%emt 0:00:06]} Kf6 {[%emt 0:00:02]} 42. Rc5 {[%emt 0:00:12]} h5 {[%emt 0:04:35]} 43. c7 {[%emt 0:00:01]} Ke7 {[%emt 0:02:38]} 44. Nc6+ {[%emt 0:00:20]} Nxc6 {[%emt 0:00:02]} 45. Rxc6 {[%emt 0:00:01]} Rd1 {[%emt 0:00:18]} 46. Rc5 {[%emt 0:00:09]} f6 {[%emt 0:00:08]} 47. h4 {[%emt 0:00:09]} Kd6 {[%emt 0:00:22]} 48. Rc4 {[%emt 0:00:02]} gxh4 {[%emt 0:00:24]} 49. Rxh4 {[%emt 0:00:02]} Rd5 {[%emt 0:00:02]} 50. Rc4 {[%emt 0:00:04]} Kd7 {[%emt 0:00:34]} 51. Kh3 {[%emt 0:00:04]} Rd2 {[%emt 0:00:33]} 52. Ra5 {[%emt 0:00:08]} f5 {[%emt 0:00:26]} 53. f4 {[%emt 0:00:08]} Rxc7 {[%emt 0:00:32]} 54. Rxc7+ {[%emt 0:00:01]} Kxc7 {[%emt 0:00:02]} 55. Ra7+ {[%emt 0:00:00]} Kd6 {[%emt 0:00:01]} 56. Rh7 {[%emt 0:00:02]} Rd1 {[%emt 0:00:00]} 57. Kh2 {[%emt 0:00:01]} Kd5 {[%emt 0:00:02]} 58. Rxh5 {[%emt 0:00:02]} Ke4 {[%emt 0:00:01]} 59. Rh4 {[%emt 0:00:01]} Ke3 {[%emt 0:00:15]} 60. Kg3 {[%emt 0:00:02]} Rd3 {[%emt 0:00:02]} 61. Rh6 {[%emt 0:00:14]} Ke4+ {[%emt 0:00:03]} 62. Kf2 {[%emt 0:00:01]} Rd6 {[%emt 0:00:16]} 63. Kg3 {[%emt 0:00:02]} Ke3 {[%emt 0:00:07]} 64. Rg6 {[%emt 0:00:04]} Ke2 {[%emt 0:00:03]} 65. Rh6 {[%emt 0:00:03]} Rd3+ {[%emt 0:00:03]} 66. Kh2 {[%emt 0:00:13]} Re3 {[%emt 0:00:01]} 67. Rf6 {[%emt 0:00:07]} Kf2 {[%emt 0:00:04]} 68. Rg6 {[%emt 0:00:17]} Kf1 {[%emt 0:00:07]} 69. g4 {[%emt 0:00:04]} Kf2 {[%emt 0:00:11]} 70. gxf5 {[%emt 0:00:10]} exf5 {[%emt 0:00:01]} 71. Ra6 {[%emt 0:00:06]} Re8 {[%emt 0:00:04]} 72. Ra2+ {[%emt 0:00:03]} Kf3 {[%emt 0:00:01]} 73. Ra3+ {[%emt 0:00:00]} Kg4 {[%emt 0:00:02]} 74. Kg2 {[%emt 0:00:02]} Re2+ {[%emt 0:00:02]} 75. Kf1 {[%emt 0:00:00]} Rb2 {[%emt 0:00:01]} 76. Kg1 {[%emt 0:00:02]} Kxf4 {[%emt 0:00:08]} 77. Kf1 {[%emt 0:00:05]} Kg4 {[%emt 0:00:01]} 78. Rc3 {[%emt 0:00:09]} f4 {[%emt 0:00:02]} 79. Ra3 {[%emt 0:00:08]} Rh2 {[%emt 0:00:02]} 80. Kg1 {[%emt 0:00:01]} Re2 {[%emt 0:00:02]} 81. Kf1 {[%emt 0:00:00]} Re8 {[%emt 0:00:09]} 82. Rb3 {[%emt 0:00:01]} Rh8 {[%emt 0:00:06]} 83. Kg1 {[%emt 0:00:05]} Rg8 {[%emt 0:00:05]} 84. Kf2 {[%emt 0:00:02]} Ra8 {[%emt 0:00:05]} 85. Rc3 {[%emt 0:00:03]} Ra1 {[%emt 0:00:05]} 86. Rb3 {[%emt 0:00:02]} Ra2+ {[%emt 0:00:01]} 87. Kf1 {[%emt 0:00:03]} Rc2 {[%emt 0:00:03]} 88. Ra3 {[%emt 0:00:00]} Rd2 {[%emt 0:00:02]} 89. Rb3 {[%emt 0:00:01]} Kf5 {[%emt 0:00:00]} 90. Ra3 {[%emt 0:00:03]} Ke4 {[%emt 0:00:02]} 91. Rb3 {[%emt 0:00:02]} Kf5 {[%emt 0:00:06]} 92. Ra3 {[%emt 0:00:00]} Kg4 {[%emt 0:00:01]} 93. Rb3 {[%emt 0:00:00]} f3 {[%emt 0:00:01]} 94. Rb8 1/2-1/2

[Event "5th Nebesna Sotnya Rapid 2018"]
[Site "Lutsk"]
[Date "2018.02.17"]
[Round "7"]
[White "Kislinsky, Alexey"]
[Black "Solovchuk, Oleksiy"]
[Result "0-1"]
[ECO "B22"]
[WhiteElo "2407"]
[BlackElo "2364"]
[Annotator "ChessBase"]
[PlyCount "108"]
[EventDate "2018.??.??"]
[EventType "swiss"]
[EventCountry "UKR"]
[SourceTitle "playchess.com"]
[Source "ChessBase"]
[SourceQuality "1"]
[TimeControl "1200+5"]

1. e4 {[%emt 0:00:00]} c5 {[%emt 0:00:02]} 2. c3 {[%emt 0:00:03]} Nf6 {[%emt 0:00:02]} 3. e5 {[%emt 0:00:01]} Nd5 {[%emt 0:00:01]} 4. d4 {[%emt 0:00:04]} cxd4 {[%emt 0:00:13]} 5. cxd4 {[%emt 0:00:02]} d6 {[%emt 0:00:07]} 6. Bc4 {[%emt 0:00:02]} e6 {[%emt 0:00:02]} 7. Qe2 {[%emt 0:00:09]} Nc6 {[%emt 0:00:01]} 8. Nf3 {[%emt 0:00:01]} Be7 {[%emt 0:00:06]} 9. O-O {[%emt 0:00:04]} Nb6 {[%emt 0:00:19]} 10. Bb3 {[%emt 0:00:03]} d5 {[%emt 0:00:02]} 11. Nc3 {[%emt 0:00:06]} a6 {[%emt 0:00:27]} 12. Be3 {[%emt 0:00:15]} Bd7 {[%emt 0:00:04]} 13. Rad1 {[%emt 0:00:19]} Rc8 {[%emt 0:00:08]} 14. Bc2 {[%emt 0:00:09]} Nc4 {[%emt 0:00:22]} 15. Bb1 {[%emt 0:00:05]} b5 {[%emt 0:01:10]} 16. a3 {[%emt 0:01:04]} b4 {[%emt 0:01:41]} 17. axb4 {[%emt 0:00:04]} Nxe3 {[%emt 0:02:21]} 18. fxe3 {[%emt 0:00:10]} Nxb4 {[%emt 0:00:04]} 19. Qf2 {[%emt 0:00:25]} O-O {[%emt 0:00:14]} 20. Qg3 {[%emt 0:00:19]} f5 {[%emt 0:01:29]} 21. exf6 {[%emt 0:00:17]} Bxf6 {[%emt 0:00:02]} 22. e4 {[%emt 0:00:33]} dxe4 {[%emt 0:04:17]} 23. Nxe4 {[%emt 0:00:01]} Bb5 {[%emt 0:01:03]} 24. Qh3 {[%emt 0:01:03]} g6 {[%emt 0:01:27]} 25. Qxe6+ {[%emt 0:00:39]} Kg7 {[%emt 0:00:03]} 26. Rfe1 {[%emt 0:00:28]} Nc2 {[%emt 0:01:57]} 27. Bxc2 {[%emt 0:02:24]} Rxc2 {[%emt 0:00:03]} 28. Nc5 {[%emt 0:00:51]} Re8 {[%emt 0:02:53]} 29. Ne5 {[%emt 0:04:28]} Bxe5 {[%emt 0:01:18]} 30. dxe5 {[%emt 0:03:29]} Rxc5 {[%emt 0:00:06]} 31. Qb3 {[%emt 0:00:36]} Qb6 {[%emt 0:00:14]} 32. Kh1 {[%emt 0:00:23]} Qe6 {[%emt 0:00:08]} 33. Qg3 {[%emt 0:00:44]} Rxe5 {[%emt 0:00:01]} 34. Rg1 {[%emt 0:00:10]} Re3 {[%emt 0:00:03]} 35. Qc7+ {[%emt 0:00:11]} Re7 {[%emt 0:00:01]} 36. Qb8 {[%emt 0:00:10]} Qe5 {[%emt 0:00:07]} 37. Qc8 {[%emt 0:00:06]} Qc7 {[%emt 0:00:05]} 38. Qg4 {[%emt 0:00:06]} Bc6 {[%emt 0:00:05]} 39. Rc1 {[%emt 0:00:09]} Qd6 {[%emt 0:00:12]} 40. Rgd1 {[%emt 0:00:24]} Bb7 {[%emt 0:00:02]} 41. h3 {[%emt 0:01:34]} Qe5 {[%emt 0:00:01]} 42. Rg1 {[%emt 0:00:47]} Rg3 {[%emt 0:00:04]} 43. Qh4 {[%emt 0:00:03]} Re3 {[%emt 0:00:08]} 44. Rcf1 {[%emt 0:00:05]} Qxb2 {[%emt 0:00:11]} 45. Rf4 {[%emt 0:00:20]} Qe5 {[%emt 0:00:01]} 46. Rff1 {[%emt 0:00:09]} h6 {[%emt 0:00:13]} 47. Rf2 {[%emt 0:00:08]} g5 {[%emt 0:00:04]} 48. Qh5 {[%emt 0:00:06]} Qe6 {[%emt 0:00:05]} 49. Kh2 {[%emt 0:00:06]} Re2 {[%emt 0:00:05]} 50. Rff1 {[%emt 0:00:05]} Qd6+ {[%emt 0:00:03]} 51. Kh1 {[%emt 0:00:02]} Qg6 {[%emt 0:00:03]} 52. Qg4 {[%emt 0:00:03]} Qe4 {[%emt 0:00:04]} 53. Qg3 {[%emt 0:00:02]} Re3 {[%emt 0:00:05]} 54. Qh2 {[%emt 0:00:02]} Qe5 {[%emt 0:00:02]} 0-1